fUST/lending_fUST_20251106
["ID","MTS","AMOUNT","RATE_DAILY","PERIOD"]
[393239873,1762369843563,-260.0,0.00016291,2]
[393239874,1762369843573,-168.0,0.00016293,2]
[393239875,1762369843585,-190.8866442,0.00016312,2]
[393239876,1762369843595,-190.8866442,0.00016312,2]
[393239877,1762369843604,-190.8866442,0.00016312,2]
[393239878,1762369843615,-190.8866442,0.00016312,2]
[393239879,1762369843625,-190.8866442,0.00016312,2]
[393239880,1762369843634,-241.9547217,0.00016312,2]
[393239881,1762369843643,-168.0,0.00016328,2]
[393239882,1762369843654,-1477.91667897,0.00016416,2]
[393239883,1762369843663,-2000.0,0.00016416,2]
[393239884,1762369843674,-500.84739709,0.00016438,2]
[393239885,1762369843685,-500.0,0.00016438,2]
[393239886,1762369843694,-500.0,0.00016438,2]
[393239887,1762369843703,-500.0,0.00016438,2]
[393239888,1762369843713,-500.0,0.00016438,2]
[393239889,1762369843722,-500.0,0.00016438,2]
[393239890,1762369843732,-500.0,0.00016438,2]
[393239891,1762369843825,-500.0,0.00016438,2]
[393239892,1762369843835,-500.0,0.00016438,2]
[393239893,1762369843844,-500.0,0.00016438,2]
[393239894,1762369843853,-500.0,0.00016438,2]
[393239895,1762369843863,-500.0,0.00016438,2]
[393239896,1762369843872,-500.0,0.00016438,2]
[393239897,1762369843881,-500.0,0.00016438,2]
[393239898,1762369843891,-500.0,0.00016438,2]
[393239899,1762369843900,-151.0,0.00016438,2]
[393239900,1762369843910,-151.0,0.00016438,2]
[393239901,1762369843919,-179.5,0.0001644,2]
[393239902,1762369843929,-960.47908108,0.00016462,2]
[393239903,1762369843939,-19627.164312,0.00016463,2]
[393239904,1762369843948,-153.0,0.00016498,2]
[393239905,1762369843958,-153.0,0.00016498,2]
[393239906,1762369843967,-239.3495884,0.00016498,2]
[393239907,1762369843976,-381.6725252,0.00016498,2]
[393239908,1762369843985,-151.0,0.000165,2]
[393239909,1762369843994,-151.0,0.000165,2]
[393239910,1762369844004,-151.0,0.000165,2]
[393239911,1762369844013,-151.0,0.000167,2]
[393239912,1762369844022,-151.0,0.000167,2]
[393239913,1762369844031,-2000.0,0.00016716,2]
[393239914,1762369844040,-1152.89723562,0.00016716,2]
[393239915,1762369844050,-2000.0,0.00016716,2]
[393239916,1762369844059,-2000.0,0.00016716,2]
[393239917,1762369844068,-2000.0,0.00016716,2]
[393239918,1762369844077,-2000.0,0.00016716,2]
[393239919,1762369844087,-382.31082008,0.00016716,2]
[393239920,1762369844097,-1503.09945831,0.00016716,2]
[393239921,1762369844106,-2000.0,0.00016716,2]
[393239922,1762369844115,-1494.43679075,0.00016716,2]
[393239923,1762369844124,-1367.34854389,0.00016716,2]
[393239924,1762369844134,-2000.0,0.00016716,2]
[393239925,1762369844143,-1007.42246392,0.00016716,2]
[393239926,1762369844152,-2000.0,0.00016716,2]
[393239927,1762369844161,-2000.0,0.00016716,2]
[393239928,1762369844170,-2000.0,0.00016716,2]
[393239929,1762369844180,-2000.0,0.00016716,2]
[393239930,1762369844189,-968.94816587,0.00016716,2]
[393239931,1762369844198,-695.62038484,0.00016716,2]
[393239933,1762369844208,-1847.15565874,0.00016716,2]
[393239935,1762369844217,-2000.0,0.00016716,2]
[393239937,1762369844226,-2000.0,0.00016716,2]
[393239938,1762369844236,-1137.70473431,0.00016716,2]
[393239940,1762369844246,-2407.46,0.00016763,2]
[393239942,1762369844255,-292.88783701,0.00016799,2]
[393239944,1762369844264,-151.0,0.000168,2]
[393239946,1762369844274,-720.0,0.00016837,2]
[393239947,1762369844283,-360.0,0.00016839,2]
[393239948,1762369844293,-168.0,0.00016851,2]
[393239949,1762369844302,-179.21640581,0.00016867,2]
[393239950,1762369844311,-168.0,0.00016935,2]
[393239951,1762369844320,-527.19810663,0.00016953,2]
[393239952,1762369844329,-2326.5713431,0.00016957,2]
[393239953,1762369844339,-2500.0,0.00016964,2]
[393239955,1762369844347,-168.0,0.00016967,2]
[393239957,1762369844356,-158.23699073,0.00016967,2]
[393239958,1762369844365,-200.0,0.00016999,2]
[393239959,1762369844374,-47045.03245405,0.00017,2]
[393239960,1762369844384,-270.05034351,0.0001705,2]
[393239961,1762369844393,-500.0,0.0001705,2]
[393239962,1762369844402,-559.95332382,0.0001705,2]
[393239963,1762369844412,-500.0,0.0001705,2]
[393239964,1762369844421,-937.24107845,0.00017106,2]
[393239965,1762369844430,-296.0,0.00017135,2]
[393239966,1762369844439,-960.47908108,0.00017191,3]
[393239967,1762369844448,-151.0,0.000172,2]
[393239968,1762369844458,-500.0,0.00017258,2]
[393239969,1762369844467,-500.0,0.00017258,2]
[393239970,1762369844476,-424.75799178,0.00017258,2]
[393239971,1762369844485,-1464.43918507,0.0001726,2]
[393239972,1762369844494,-1500.0,0.0001726,2]
[393239973,1762369844503,-409.02935217,0.00017261,2]
[393239974,1762369844512,-2351.0,0.00017262,2]
[393239975,1762369844521,-448.0,0.00017264,2]
[393239976,1762369844533,-587.0,0.00017264,2]
[393239977,1762369844542,-273.28898679,0.00017264,2]
[393239978,1762369844551,-2500.0,0.00017264,2]
[393239979,1762369844560,-2500.0,0.00017264,2]
[393239980,1762369844569,-386.46848177,0.00017264,2]
[393239981,1762369844582,-1003.74050269,0.00017264,2]
[393239982,1762369844592,-1160.29173698,0.00017264,2]
[393239983,1762369844602,-2500.0,0.00017264,2]
[393239984,1762369844611,-2500.0,0.00017264,2]
[393239985,1762369844621,-2506.44073364,0.00017264,2]
[393239986,1762369844630,-2500.0,0.00017264,2]
[393239987,1762369844639,-2500.0,0.00017264,2]
[393239988,1762369844650,-1687.80331138,0.00017264,2]
[393239989,1762369844663,-2500.0,0.00017264,2]
[393239990,1762369844672,-349.05828077,0.00017292,2]
[393239991,1762369844682,-190.8866442,0.0001732,2]
[393239992,1762369844692,-190.8866442,0.0001732,2]
[393239993,1762369844701,-190.8866442,0.0001732,2]
[393239994,1762369844710,-190.8866442,0.0001732,2]
[393239995,1762369844720,-190.8866442,0.0001732,2]
[393239996,1762369844729,-190.8866442,0.0001732,2]
[393239997,1762369844737,-190.8866442,0.0001732,2]
[393239998,1762369844746,-190.8866442,0.0001732,2]
[393239999,1762369844755,-190.8866442,0.0001732,2]
[393240000,1762369844764,-190.8866442,0.0001732,2]
[393240001,1762369844773,-190.8866442,0.0001732,2]
[393240002,1762369844783,-190.8866442,0.0001732,2]
[393240003,1762369844793,-190.8866442,0.0001732,2]
[393240004,1762369844804,-190.8866442,0.0001732,2]
[393240005,1762369844813,-190.8866442,0.0001732,2]
[393240006,1762369844824,-423.0798179,0.0001732,2]
[393240007,1762369844834,-207.39,0.00017322,2]
[393240008,1762369844843,-500.0,0.00017329,2]
[393240009,1762369844852,-736.25283391,0.0001736,2]
[393240010,1762369844862,-460.0,0.00017387,2]
[393240011,1762369844871,-2108.79242651,0.00017413,2]
[393240012,1762369844881,-2351.0,0.00017418,2]
[393240013,1762369844890,-1308.89392696,0.00017459,2]
[393240014,1762369844899,-3009.32,0.00017461,2]
[393240015,1762369844908,-628.30490538,0.00017474,2]
[393240016,1762369844917,-151.0,0.000175,2]
[393240017,1762369844926,-3000.0,0.00017512,2]
[393240018,1762369844936,-2045.14676087,0.00017559,2]
[393240019,1762369844945,-1000.0,0.00017598,2]
[393240020,1762369844954,-1000.0,0.00017598,2]
[393240021,1762369844963,-2081.5003568,0.00017604,2]
[393240022,1762369844972,-235.58740669,0.0001764,2]
[393240023,1762369844982,-312.3073232,0.00017644,2]
[393240024,1762369844991,-14655.446616,0.00017654,2]
[393240025,1762369845000,-1116.98649845,0.00017657,2]
[393240026,1762369845010,-2945.01133566,0.00017658,2]
[393240027,1762369845020,-4008.48765131,0.00017758,2]
[393240028,1762369845029,-1000.0,0.00017806,2]
[393240029,1762369845038,-1000.0,0.00017806,2]
[393240030,1762369845047,-3000.0,0.00017812,2]
[393240031,1762369845056,-3000.0,0.00017812,2]
[393240032,1762369845065,-3000.0,0.00017812,2]
[393240033,1762369845074,-3000.0,0.00017812,2]
[393240034,1762369845083,-3000.0,0.00017812,2]
[393240035,1762369845093,-3000.0,0.00017812,2]
[393240036,1762369845102,-3000.0,0.00017812,2]
[393240037,1762369845111,-424.05733205,0.00017815,2]
[393240038,1762369845120,-168.77731094,0.00017816,2]
[393240039,1762369845130,-562.15318176,0.00017831,2]
[393240040,1762369845139,-1745.29140383,0.00017839,2]
[393240041,1762369845148,-5235.57570783,0.00017857,2]
[393240042,1762369845158,-1000.0,0.00017877,2]
[393240043,1762369845167,-960.47908108,0.00017921,4]
[393240044,1762369845178,-560.0,0.00017935,2]
[393240045,1762369845187,-6626.27550523,0.00017955,2]
[393240046,1762369845196,-160.0,0.00017965,2]
[393240047,1762369845206,-160.0,0.00017965,2]
[393240048,1762369845215,-160.0,0.00017966,2]
[393240049,1762369845224,-160.0,0.00017967,2]
[393240050,1762369845233,-753.87970142,0.00017989,2]
[393240051,1762369845243,-270.18430708,0.00017998,2]
[393240052,1762369845253,-61164.47413039,0.00018,2]
[393240062,1762369846887,-3e-08,0.000144,2]
[393240063,1762369846922,337.53,0.00012329,2]
[393240064,1762369846959,324.58850172,0.00014032,2]
[393240065,1762369847330,-240.08999997,0.000144,2]
[393240066,1762369847341,-239.15056315,0.00014628,2]
[393240067,1762369847351,-173.952338,0.00015068,2]
[393240068,1762369847362,-829.02928524,0.00018,2]
[393240069,1762369848262,-430.47101367,0.00014628,2]
[393240070,1762369848271,-416.99229262,0.00016068,2]
[393240071,1762369848280,-632.88671211,0.00018,2]
[393240072,1762369848292,-24987.35,0.00018,2]
[393240073,1762369857220,10000.0,0.00013395,2]
[393240074,1762369862846,-765.28180207,0.00014628,2]
[393240075,1762369871384,8435.91274316,0.00018018,7]
[393240076,1762369888031,10000.01,0.00014299,2]
[393240077,1762369888054,10000.01,0.00014299,2]
[393240078,1762369888078,10000.01,0.00014299,2]
[393240079,1762369888101,10000.01,0.00014299,2]
[393240080,1762369888124,10000.01,0.00014299,2]
[393240081,1762369893732,2958.68552364,0.00014156,2]
[393240082,1762369901610,208.562005,0.00014156,2]
[393240083,1762369909652,402.48301538,0.00014156,2]
[393240084,1762369923744,300.0,0.00014298,2]
[393240085,1762369953541,304.19874866,0.00014298,2]
[393240086,1762369955211,500.0,0.00014298,2]
[393240087,1762369955261,500.0,0.00014298,2]
[393240088,1762369955302,500.0,0.00014298,2]
[393240089,1762369955339,500.0,0.00014298,2]
[393240090,1762369955369,633.01374324,0.00014298,2]
[393240091,1762369955398,500.0,0.00014298,2]
[393240092,1762369955439,482.62134585,0.00014298,2]
[393240093,1762369955469,500.0,0.00014298,2]
[393240094,1762369955507,500.0,0.00014298,2]
[393240095,1762369955543,500.0,0.00014298,2]
[393240096,1762369955587,250.0,0.00014298,2]
[393240097,1762369961911,460.44561823,0.00014298,2]
[393240098,1762369961933,739.55438177,0.00014298,2]
[393240099,1762369966071,508.3981328,0.00014298,2]
[393240100,1762369966145,500.0,0.00014298,2]
[393240101,1762369967827,500.0,0.00014298,2]
[393240102,1762369968158,500.0,0.00014298,2]
[393240103,1762369972916,3372.38503472,0.00018018,7]
[393240104,1762369974918,1196.74776078,0.00018018,7]
[393240105,1762369975960,402.48301538,0.00014156,2]
[393240106,1762369977056,500.0,0.00014298,2]
[393240107,1762369977090,500.0,0.00014298,2]
[393240108,1762369977143,500.0,0.00014298,2]
[393240109,1762369977172,500.0,0.00014298,2]
[393240110,1762369977204,500.0,0.00014298,2]
[393240111,1762369977241,500.0,0.00014298,2]
[393240112,1762369977280,500.0,0.00014298,2]
[393240113,1762369977345,500.0,0.00014298,2]
[393240114,1762369977408,169.59576842,0.00014298,2]
[393240115,1762369977462,500.0,0.00014298,2]
[393240116,1762369983774,1006.20753845,0.00014156,2]
[393240117,1762369990621,300.0,0.00014298,2]
[393240118,1762369992388,873.77116318,0.00014156,2]
[393240119,1762369992409,333.67788296,0.00014156,2]
[393240120,1762370000237,1207.44904614,0.00014156,2]
[393240121,1762370005916,281.28,0.00012329,2]
[393240122,1762370008839,603.72452307,0.00014156,2]
[393240123,1762370010585,197.64416801,0.00014298,2]
[393240124,1762370011317,500.0,0.00014298,2]
[393240125,1762370016508,234.4,0.00012329,2]
[393240126,1762370016649,500.0,0.00014298,2]
[393240127,1762370016774,201.24150769,0.00014156,2]
[393240128,1762370019900,165.74192517,0.00014298,2]
[393240129,1762370019988,500.0,0.00014298,2]
[393240130,1762370020018,500.0,0.00014298,2]
[393240131,1762370025873,630.18575595,0.00014298,2]
[393240132,1762370027238,195.33,0.00012329,2]
[393240133,1762370029095,500.0,0.00014298,2]
[393240134,1762370034888,500.0,0.00014298,2]
[393240135,1762370037868,162.77,0.00012329,2]
[393240136,1762370044016,500.0,0.00014298,2]
[393240137,1762370046879,500.0,0.00014298,2]
[393240138,1762370048756,813.9,0.00012329,2]
[393240140,1762370064688,500.0,0.00014298,2]
[393240141,1762370074454,472.66519101,0.00014298,2]
[393240142,1762370074477,27.33480899,0.00014298,2]
[393240143,1762370101279,300.0,0.00014298,2]
[393240144,1762370102039,300.0,0.00014298,2]
[393240145,1762370102643,300.0,0.00014298,2]
[393240146,1762370104865,300.0,0.00014298,2]
[393240147,1762370105965,500.0,0.00014298,2]
[393240148,1762370106018,500.0,0.00014298,2]
[393240149,1762370106072,500.0,0.00014298,2]
[393240150,1762370106139,498.26213458,0.00014298,2]
[393240151,1762370106839,300.0,0.00014298,2]
[393240152,1762370109023,1200.0,0.00014298,2]
[393240153,1762370116236,500.0,0.00014298,2]
[393240154,1762370116274,500.0,0.00014298,2]
[393240155,1762370116314,493.50489685,0.00014298,2]
[393240156,1762370119811,500.0,0.00014298,2]
[393240157,1762370119843,500.0,0.00014298,2]
[393240158,1762370119877,500.0,0.00014298,2]
[393240159,1762370119905,500.0,0.00014298,2]
[393240160,1762370119946,500.0,0.00014298,2]
[393240161,1762370123774,500.0,0.00014298,2]
[393240162,1762370123832,500.00000001,0.00014298,2]
[393240163,1762370136542,584.29790623,0.00014199,2]
[393240164,1762370145214,4187.44596386,0.00018023,7]
[393240165,1762370162416,300.0,0.00014298,2]
[393240167,1762370178707,827.1445077,0.00013699,2]
[393240170,1762370223120,300.0,0.00014298,2]
[393240171,1762370248870,219.32724945,0.00014199,2]
[393240172,1762370262020,1200.0,0.00014298,2]
[393240174,1762370319473,202.0696404,0.00014236,2]
[393240175,1762370342709,300.0,0.00014298,2]
[393240176,1762370351788,-202.40716947,0.00014299,2]
[393240177,1762370353345,-246.95050847,0.00014299,2]
[393240178,1762370355538,-156.01068577,0.00014299,2]
[393240180,1762370357007,-229.30936105,0.00014299,2]
[393240181,1762370367113,834.63927414,0.00014156,2]
[393240182,1762370406612,300.0,0.00014298,2]
[393240183,1762370409451,1200.0,0.00014298,2]
[393240185,1762370462335,300.0,0.00014298,2]
[393240186,1762370503699,411.138,0.00014013,2]
[393240187,1762370511117,2021.39342207,0.00014267,2]
[393240188,1762370511139,793.2924361,0.00014267,2]
[393240189,1762370561976,1200.0,0.00014298,2]
[393240190,1762370563669,868.00135725,0.00018021,7]
[393240192,1762370584122,300.0,0.00014298,2]
[393240193,1762370617863,631.69368532,0.00014298,2]
[393240194,1762370635573,411.0,0.00014298,2]
[393240196,1762370643796,300.0,0.00014298,2]
[393240199,1762370676504,1707.6557411,0.0001392,2]
[393240200,1762370690221,500.0,0.00037473,30]
[393240201,1762370692615,500.0,0.00037473,30]
[393240202,1762370710856,1200.0,0.00014298,2]
[393240205,1762370748304,776.61294791,0.00018021,7]
[393240208,1762370791348,2462.85012589,0.00014199,2]
[393240213,1762370825420,300.0,0.00014298,2]
[393240228,1762370862189,693.51801159,0.00014298,2]
[393240229,1762370862210,506.48198841,0.00014298,2]
[393240231,1762370867664,589.9384965,0.00018021,7]
[393240244,1762370882712,300.0,0.00014298,2]
[393240246,1762370885177,421.85017604,0.00010618,2]
[393240247,1762370887004,8771.67783555,0.000125,2]
[393240248,1762370887026,492.93416083,0.000125,2]
[393240249,1762370906303,200000.00497641,0.0003,120]
[393240252,1762370916120,2376.87077569,0.0001,2]
[393240260,1762370952823,1810.80484,0.00013835,2]
[393240263,1762370973419,500.0,0.00014298,2]
[393240264,1762370983150,500.0,0.00014298,2]
[393240265,1762370987911,1286.51904835,0.00037473,63]
[393240266,1762370992228,500.0,0.00014298,2]
[393240267,1762371001094,205.67327419,0.00014298,2]
[393240268,1762371002226,300.0,0.00014298,2]
[393240269,1762371010037,500.0,0.00014298,2]
[393240270,1762371013958,1200.0,0.00014298,2]
[393240271,1762371019842,500.0,0.00014298,2]
[393240272,1762371019891,500.0,0.00014298,2]
[393240273,1762371019942,287.62600585,0.00014298,2]
[393240274,1762371022992,208.9735049,0.00014298,2]
[393240275,1762371024974,117.12743854,0.00012329,2]
[393240276,1762371024995,101.19256146,0.00012329,2]
[393240481,1762371035520,181.93,0.00012329,2]
[393240514,1762371038307,-832.13218153,0.00014299,2]
[393240520,1762371038364,-584.29790623,0.00014299,2]
[393240694,1762371040446,-3355.18073061,0.00014299,2]
[393240701,1762371040502,-4355.61241024,0.00014299,2]
[393240703,1762371040513,-2643.79768868,0.00014299,2]
[393240915,1762371046002,234.31,0.00012329,2]
[393240932,1762371046880,-7728.574617,0.00014299,2]
[393240933,1762371056608,195.25,0.00012329,2]
[393240934,1762371056765,241.63328309,0.00018022,7]
[393240935,1762371062782,9287.32743854,0.0001372,2]
[393240936,1762371062803,8000.74726486,0.0001372,2]
[393240937,1762371063696,1000.0,0.0001372,2]
[393240938,1762371063796,300.0,0.00014298,2]
[393240940,1762371067258,437.72,0.00012329,2]
[393240941,1762371068317,261.54273514,0.00014156,2]
[393240942,1762371068341,238.45726486,0.00014156,2]
[393240943,1762371071763,2154.99386018,0.00014199,2]
[393240944,1762371076136,1574.94648075,0.00014156,2]
[393240945,1762371077630,503.25,0.00012329,2]
[393240946,1762371088090,419.38,0.00012329,2]
[393240947,1762371091315,1074.94648075,0.00014156,2]
[393240948,1762371098829,349.48,0.00012329,2]
[393240949,1762371100320,859.9571846,0.00014156,2]
[393240950,1762371103704,328.911,0.00014013,2]
[393240951,1762371109332,291.23,0.00012329,2]
[393240953,1762371115512,644.96788845,0.00014156,2]
[393240956,1762371120083,242.69,0.00012329,2]
[393240957,1762371126483,300.0,0.00014298,2]
[393240961,1762371130619,202.25,0.00012329,2]
[393240964,1762371140165,500.0,0.00014298,2]
[393240965,1762371140194,500.0,0.00014298,2]
[393240966,1762371140248,523.02452999,0.00014298,2]
[393240967,1762371140495,489.054645,0.00014298,2]
[393240968,1762371140532,275.4643988,0.00014298,2]
[393240969,1762371141076,168.54,0.00012329,2]
[393240971,1762371151820,751.91739166,0.00012329,2]
[393240972,1762371151841,90.79260834,0.00012329,2]
[393240973,1762371152756,500.0,0.00014298,2]
[393240974,1762371153505,500.0,0.00014298,2]
[393240975,1762371154650,500.0,0.00014298,2]
[393240976,1762371155014,500.0,0.00014298,2]
[393240984,1762371162910,1200.0,0.00014298,2]
[393240994,1762371183447,300.0,0.00014298,2]
[393241000,1762371215201,3944.90546573,0.00014199,2]
[393241002,1762371220778,2464.31192593,0.00014199,2]
[393241003,1762371220800,10000.01,0.00014199,2]
[393241004,1762371220821,10000.01,0.00014199,2]
[393241005,1762371220842,10000.01,0.00014199,2]
[393241006,1762371220863,10000.01,0.00014199,2]
[393241007,1762371225355,-323.90013079,0.00014156,2]
[393241008,1762371233654,668.13871459,0.00014057,2]
[393241009,1762371240001,22054.6558308,0.00013703,2]
[393241010,1762371265727,-271.02432081,0.00014198,2]
[393241011,1762371308916,354.557405,0.0001665,3]
[393241012,1762371385588,-238.55260322,0.00014197,2]
[393241013,1762371388443,-61.44739678,0.00014197,2]
[393241014,1762371388466,-140.1495846,0.00014198,2]
[393241016,1762371416970,-250.63716516,0.00014198,2]
[393241017,1762371420323,-22.17550322,0.00014198,2]
[393241018,1762371420347,-166.56972742,0.00014198,2]
[393241019,1762371422540,-220.90991475,0.00014198,2]
[393241020,1762371422564,-79.09008525,0.00014198,2]
[393241021,1762371422687,923.07780321,0.00014056,2]
[393241022,1762371424712,-300.0,0.00014198,2]
[393241023,1762371426271,-120.90991475,0.00014198,2]
[393241024,1762371426294,-162.09123032,0.00014198,2]
[393241025,1762371490658,-275.99194679,0.00014197,2]
[393241026,1762371493421,-24.00805321,0.00014197,2]
[393241027,1762371493444,-106.75274395,0.00014198,2]
[393241028,1762371493464,-174.03950659,0.00014198,2]
[393241029,1762371496643,613.35457523,0.00014056,2]
[393241030,1762371525325,84432.49,0.000375,30]
[393241031,1762371528098,206.08894803,0.00014097,2]
[393241032,1762371595669,-162.63737156,0.00014197,2]
[393241033,1762371598468,-227.76886672,0.00014197,2]
[393241039,1762371625881,-124.35447943,0.00014197,2]
[393241040,1762371625902,-28.35631067,0.00014197,2]
[393241041,1762371627548,-268.171401,0.00014197,2]
[393241042,1762371641180,-3.47228833,0.00014197,2]
[393241043,1762371641203,-300.0,0.00014197,2]
[393241044,1762371641224,-175.78031016,0.00014197,2]
[393241045,1762371643351,-124.21968984,0.00014197,2]
[393241046,1762371643372,-59.09001463,0.00014198,2]
[393241047,1762371646254,-257.01662649,0.00014198,2]
[393241048,1762371647820,-267.4125826,0.00014198,2]
[393241049,1762371655609,-216.17313742,0.00014198,2]
[393241050,1762371657867,-343.14523591,0.00014198,2]
[393241051,1762371660546,-57.16240295,0.00014198,2]
[393241052,1762371660569,-126.32762282,0.00014198,2]
[393241053,1762371670815,-173.67237718,0.00014198,2]
[393241054,1762371670839,-233.48197045,0.00014198,2]
[393241055,1762371672321,-151.0,0.00014198,2]
[393241056,1762371673842,-149.0,0.00014198,2]
[393241057,1762371673871,-31.65511358,0.00014198,2]
[393241058,1762371676540,-58.76304676,0.00014198,2]
[393241059,1762371676571,-213.3638526,0.00014199,2]
[393241060,1762371679775,-235.41256323,0.00014199,2]
[393241061,1762371681918,-190.32195139,0.00014199,2]
[393241062,1762371684659,-245.27588994,0.00014199,2]
[393241063,1762371700590,-227.20202614,0.00014199,2]
[393241064,1762371703742,263.129,0.00013915,2]
[393241065,1762371705821,-173.4791613,0.00014199,2]
[393241066,1762371708478,-271.03465328,0.00014199,2]
[393241067,1762371710704,-220.91916752,0.00014199,2]
[393241068,1762371713477,-281.56134234,0.00014199,2]
[393241069,1762371730563,-294.79700951,0.00014198,2]
[393241070,1762371732072,-5.20299049,0.00014198,2]
[393241071,1762371732105,-223.98958853,0.00014199,2]
[393241072,1762371734713,-312.21737059,0.00014199,2]
[393241073,1762371752608,41416.7734341,0.00013455,2]
[393241076,1762371849404,203.223388,0.00013273,2]
[393241080,1762371862032,-1247.26952653,0.00014156,2]
[393241081,1762371862056,-321.4405614,0.00014182,2]
[393241082,1762371862079,-1200.0,0.00014198,2]
[393241083,1762371862103,-300.0,0.00014198,2]
[393241084,1762371862132,-10431.28991207,0.00014199,2]
[393241092,1762371887760,1707.04098087,0.00014057,2]
[393241093,1762371903168,1048051.89735231,0.000375,120]
[393241094,1762371903863,401.831726,0.0001665,3]
[393241095,1762371927600,-151.0,0.0001419,2]
[393241096,1762371927623,-151.0,0.0001419,2]
[393241097,1762371927645,-19.61514281,0.0001419,2]
[393241098,1762372030848,1201.2312628,0.00013405,2]
[393241099,1762372061942,1200.0,0.00014189,2]
[393241100,1762372082366,300.0,0.00014189,2]
[393241101,1762372096650,8500.01,0.00014,2]
[393241102,1762372096687,1068.17174513,0.00014,2]
[393241103,1762372101752,290.15057885,0.0001409,2]
[393241104,1762372108895,901.9686674,0.00013699,2]
[393241105,1762372113280,300.0,0.00014,2]
[393241106,1762372123616,300.0,0.00014,2]
[393241108,1762372218997,507.8008313,0.00013197,2]
[393241175,1762372232844,-300.0,0.00014189,2]
[393241177,1762372232854,-300.0,0.00014189,2]
[393241179,1762372232863,-300.0,0.00014189,2]
[393241181,1762372232874,-1200.0,0.00014189,2]
[393241183,1762372232883,-151.0,0.0001419,2]
[393241185,1762372232892,-151.0,0.0001419,2]
[393241187,1762372232901,-151.0,0.0001419,2]
[393241189,1762372232909,-151.0,0.0001419,2]
[393241191,1762372232919,-151.0,0.0001419,2]
[393241193,1762372232928,-151.0,0.0001419,2]
[393241195,1762372232937,-151.0,0.0001419,2]
[393241197,1762372232947,-151.0,0.0001419,2]
[393241199,1762372232956,-151.0,0.0001419,2]
[393241201,1762372232965,-265.0229971,0.0001419,2]
[393241203,1762372232974,-22355.20943229,0.0001419,2]
[393241206,1762372232997,-383.82823593,0.0001419,2]
[393241236,1762372238491,-4235.82435736,0.0001419,2]
[393241237,1762372238543,-18514.17747045,0.0001419,2]
[393241264,1762372241195,-131.18553345,0.0001419,2]
[393241266,1762372241207,-1896.47725409,0.0001419,2]
[393241621,1762372244742,-2483.29771643,0.0001419,2]
[393241623,1762372244751,-323.1817202,0.00014194,2]
[393241625,1762372244761,-289.07357709,0.00014197,2]
[393241627,1762372244771,-2477.01044082,0.00014198,2]
[393241629,1762372244780,-1329.93,0.00014198,2]
[393241631,1762372244789,-1329.93,0.00014198,2]
[393241633,1762372244798,-1329.93,0.00014198,2]
[393241635,1762372244807,-1329.93,0.00014198,2]
[393241637,1762372244817,-1329.93,0.00014198,2]
[393241639,1762372244826,-1329.93,0.00014198,2]
[393241641,1762372244837,-1329.93,0.00014198,2]
[393241643,1762372244846,-1329.93,0.00014198,2]
[393241646,1762372244856,-1329.93,0.00014198,2]
[393241648,1762372244865,-1329.93,0.00014198,2]
[393241650,1762372244874,-1329.93,0.00014198,2]
[393241652,1762372244883,-1329.93,0.00014198,2]
[393241654,1762372244892,-1329.93,0.00014198,2]
[393241656,1762372244901,-1329.93,0.00014198,2]
[393241658,1762372244911,-1329.93,0.00014198,2]